[Event "*** Qualifier 3: Titled Tuesday 3|2 Blitz"]
[Site "Chess.com"]
[Date "2017.04.18"]
[Round "6"]
[White "hsskoo"]
[Black "FearNoEvil12"]
[Result "0-1"]
[WhiteElo "1945"]
[BlackElo "2115"]
[TimeControl "180+2"]
[EndTime "14:21:03 PDT"]
[Termination "FearNoEvil12 won on time"]

1. d4 {[%clk 0:02:59.5]} 1... b5 {[%clk 0:02:59.7]} 2. e4 {[%clk 0:02:58.6]}
2... a6 {[%clk 0:03:01]} 3. a4 {[%clk 0:02:58.1]} 3... b4 {[%clk 0:03:00.6]} 4.
Nf3 {[%clk 0:02:58.3]} 4... Bb7 {[%clk 0:03:01.5]} 5. Nbd2 {[%clk 0:02:58.5]}
5... e6 {[%clk 0:03:02.6]} 6. Bd3 {[%clk 0:02:58.9]} 6... Nf6 {[%clk 0:03:04]}
7. O-O {[%clk 0:02:58.3]} 7... d6 {[%clk 0:03:05.2]} 8. Re1 {[%clk 0:02:58.8]}
8... Nbd7 {[%clk 0:03:05.9]} 9. Nf1 {[%clk 0:02:59.8]} 9... h6 {[%clk
0:03:05.6]} 10. Ng3 {[%clk 0:03:00.5]} 10... g5 {[%clk 0:03:05.9]} 11. d5 {[%clk
0:02:49.2]} 11... e5 {[%clk 0:02:49.3]} 12. Nf5 {[%clk 0:02:48.5]} 12... Bc8
{[%clk 0:02:50.3]} 13. c4 {[%clk 0:02:32.1]} 13... Nc5 {[%clk 0:02:47.5]} 14.
Be3 {[%clk 0:02:30.1]} 14... Nxd3 {[%clk 0:02:46.7]} 15. Qxd3 {[%clk 0:02:29.9]}
15... Bxf5 {[%clk 0:02:46.5]} 16. exf5 {[%clk 0:02:29.9]} 16... Be7 {[%clk
0:02:38.8]} 17. Nd2 {[%clk 0:02:28.9]} 17... Qd7 {[%clk 0:02:34.7]} 18. c5
{[%clk 0:02:27.9]} 18... dxc5 {[%clk 0:02:34.3]} 19. Nc4 {[%clk 0:02:26.8]}
19... Bd6 {[%clk 0:02:32.7]} 20. f4 {[%clk 0:02:14.6]} 20... e4 {[%clk
0:02:25.2]} 21. Qd2 {[%clk 0:02:12.9]} 21... O-O-O {[%clk 0:02:09.7]} 22. Qe2
{[%clk 0:01:55.9]} 22... Qxf5 {[%clk 0:02:02.5]} 23. Ne5 {[%clk 0:01:52.3]}
23... Kb7 {[%clk 0:01:46.4]} 24. Nxf7 {[%clk 0:01:47.3]} 24... gxf4 {[%clk
0:01:43.7]} 25. Nxd8+ {[%clk 0:01:47]} 25... Rxd8 {[%clk 0:01:42.5]} 26. Rf1
{[%clk 0:01:37.9]} 26... Nxd5 {[%clk 0:01:34.3]} 27. Rad1 {[%clk 0:01:30.5]}
27... Rg8 {[%clk 0:01:28.2]} 28. g3 {[%clk 0:01:23.1]} 28... f3 {[%clk
0:01:03.1]} 29. Qf2 {[%clk 0:01:22.3]} 29... Nxe3 {[%clk 0:00:57.6]} 30. Qxe3
{[%clk 0:01:21.2]} 30... Bxg3 {[%clk 0:00:45.3]} 31. Qb3 {[%clk 0:00:47.3]}
31... Bxh2+ {[%clk 0:00:26.7]} 32. Kh1 {[%clk 0:00:45.1]} 32... Rg2 {[%clk
0:00:21]} 33. Qd5+ {[%clk 0:00:32.2]} 33... Qxd5 {[%clk 0:00:20.3]} 34. Rxd5
{[%clk 0:00:33.1]} 34... Bd6 {[%clk 0:00:19.7]} 35. Re1 {[%clk 0:00:27.2]} 35...
Re2 {[%clk 0:00:14.4]} 36. Rf1 {[%clk 0:00:10.2]} 36... Rxb2 {[%clk 0:00:13.2]}
37. Rdd1 {[%clk 0:00:03.4]} 37... Rh2+ {[%clk 0:00:10.1]} 38. Kg1 {[%clk
0:00:03.7]} 38... Rg2+ {[%clk 0:00:11.6]} 39. Kh1 {[%clk 0:00:03.7]} 39... Bg3
{[%clk 0:00:10.4]} 0-1

[Event "*** Qualifier 3: Titled Tuesday 3|2 Blitz"]
[Site "Chess.com"]
[Date "2017.04.18"]
[Round "6"]
[White "johnathan113"]
[Black "Yaacovn"]
[Result "0-1"]
[WhiteElo "2470"]
[BlackElo "2605"]
[TimeControl "180+2"]
[EndTime "14:21:09 PDT"]
[Termination "Yaacovn won on time"]

1. e4 {[%clk 0:02:59.3]} 1... c6 {[%clk 0:02:57.6]} 2. d4 {[%clk 0:02:55.8]}
2... d5 {[%clk 0:02:59.5]} 3. exd5 {[%clk 0:02:57.7]} 3... cxd5 {[%clk
0:03:01.1]} 4. Nc3 {[%clk 0:02:59.6]} 4... Nf6 {[%clk 0:03:02.2]} 5. Bf4 {[%clk
0:03:01]} 5... a6 {[%clk 0:03:01.1]} 6. Nf3 {[%clk 0:03:01.6]} 6... Bg4 {[%clk
0:03:00.8]} 7. h3 {[%clk 0:03:02.4]} 7... Bxf3 {[%clk 0:03:01.9]} 8. Qxf3 {[%clk
0:03:04.3]} 8... Nc6 {[%clk 0:03:03]} 9. O-O-O {[%clk 0:03:04.6]} 9... e6 {[%clk
0:03:04.1]} 10. g4 {[%clk 0:02:58.1]} 10... Qa5 {[%clk 0:03:00.7]} 11. Kb1
{[%clk 0:02:56.9]} 11... Bb4 {[%clk 0:02:56.7]} 12. Ne2 {[%clk 0:02:57.3]} 12...
Ne4 {[%clk 0:02:52.4]} 13. c3 {[%clk 0:02:49.9]} 13... Bd6 {[%clk 0:02:49.6]}
14. Ng3 {[%clk 0:02:50.4]} 14... Bxf4 {[%clk 0:02:37.2]} 15. Qxf4 {[%clk
0:02:44.7]} 15... Nxg3 {[%clk 0:02:24.8]} 16. fxg3 {[%clk 0:02:46.6]} 16... Rc8
{[%clk 0:02:22.6]} 17. h4 {[%clk 0:02:41.6]} 17... Qc7 {[%clk 0:02:23.5]} 18.
Qf3 {[%clk 0:02:37.5]} 18... b5 {[%clk 0:02:17]} 19. h5 {[%clk 0:02:31.5]} 19...
h6 {[%clk 0:02:15.7]} 20. Re1 {[%clk 0:02:19.8]} 20... Qe7 {[%clk 0:02:11.3]}
21. Bd3 {[%clk 0:02:15.7]} 21... Rb8 {[%clk 0:01:50.9]} 22. Qf4 {[%clk
0:01:56.1]} 22... O-O {[%clk 0:01:44.2]} 23. Bc2 {[%clk 0:01:45.3]} 23... b4
{[%clk 0:01:33.3]} 24. c4 {[%clk 0:01:45.9]} 24... Qf6 {[%clk 0:01:22]} 25. Qxf6
{[%clk 0:01:34.8]} 25... gxf6 {[%clk 0:01:23.9]} 26. cxd5 {[%clk 0:01:35.9]}
26... Nxd4 {[%clk 0:01:25.1]} 27. dxe6 {[%clk 0:01:33.7]} 27... fxe6 {[%clk
0:01:26]} 28. Re4 {[%clk 0:01:30.3]} 28... e5 {[%clk 0:01:24.2]} 29. Rf1 {[%clk
0:01:30.9]} 29... Kg7 {[%clk 0:01:22.3]} 30. Bd3 {[%clk 0:01:29]} 30... a5
{[%clk 0:01:22.6]} 31. Ree1 {[%clk 0:01:26.9]} 31... Rfd8 {[%clk 0:01:17.8]} 32.
Rc1 {[%clk 0:01:24.5]} 32... Rbc8 {[%clk 0:01:17.2]} 33. Be4 {[%clk 0:01:19.5]}
33... Ne2 {[%clk 0:01:12.1]} 34. Rxc8 {[%clk 0:01:15.6]} 34... Rxc8 {[%clk
0:01:14]} 35. Rd1 {[%clk 0:01:10.7]} 35... Nd4 {[%clk 0:01:10.7]} 36. Bf5 {[%clk
0:00:56.6]} 36... Rc7 {[%clk 0:01:08]} 37. Be4 {[%clk 0:00:46]} 37... Kf7 {[%clk
0:01:08.4]} 38. Bf5 {[%clk 0:00:37.4]} 38... Ke7 {[%clk 0:01:08.9]} 39. Re1
{[%clk 0:00:28]} 39... a4 {[%clk 0:00:56.4]} 40. Bg6 {[%clk 0:00:17.5]} 40...
Ke6 {[%clk 0:00:50.7]} 41. Be8 {[%clk 0:00:12.3]} 41... a3 {[%clk 0:00:51.1]}
42. Ba4 {[%clk 0:00:08.8]} 42... axb2 {[%clk 0:00:48.7]} 43. Kxb2 {[%clk
0:00:10.7]} 43... Rc3 {[%clk 0:00:49.5]} 44. Rg1 {[%clk 0:00:06.1]} 44... e4
{[%clk 0:00:44.7]} 45. Re1 {[%clk 0:00:03.8]} 45... Kd5 {[%clk 0:00:44]} 46.
Bb3+ {[%clk 0:00:05.2]} 46... Ke5 {[%clk 0:00:44.3]} 47. Rg1 {[%clk 0:00:05.7]}
47... e3 {[%clk 0:00:42.7]} 48. Re1 {[%clk 0:00:03.2]} 48... Ke4 {[%clk
0:00:42.9]} 49. Bg8 {[%clk 0:00:02.8]} 49... e2 {[%clk 0:00:42.1]} 50. Bb3
{[%clk 0:00:03]} 50... Ke3 {[%clk 0:00:43.1]} 51. Rc1 {[%clk 0:00:03.4]} 51...
Rxc1 {[%clk 0:00:43.9]} 0-1

[Event "*** Qualifier 3: Titled Tuesday 3|2 Blitz"]
[Site "Chess.com"]
[Date "2017.04.18"]
[Round "6"]
[White "rithwik2002"]
[Black "Enzy63"]
[Result "1-0"]
[WhiteElo "1806"]
[BlackElo "2033"]
[TimeControl "180+2"]
[EndTime "14:21:14 PDT"]
[Termination "rithwik2002 won on time"]

1. d4 {[%clk 0:03:02]} 1... Nf6 {[%clk 0:03:00.5]} 2. Bf4 {[%clk 0:03:01.4]}
2... c5 {[%clk 0:02:53.1]} 3. e3 {[%clk 0:02:59.2]} 3... g6 {[%clk 0:02:52.3]}
4. Nc3 {[%clk 0:02:49.8]} 4... Bg7 {[%clk 0:02:49.3]} 5. h4 {[%clk 0:02:42.1]}
5... Qa5 {[%clk 0:02:36.3]} 6. Nf3 {[%clk 0:01:32.8]} 6... Nc6 {[%clk
0:02:09.5]} 7. Qd2 {[%clk 0:01:23]} 7... d6 {[%clk 0:02:03.4]} 8. d5 {[%clk
0:01:14.9]} 8... Nb4 {[%clk 0:02:01.7]} 9. Bb5+ {[%clk 0:00:58.6]} 9... Bd7
{[%clk 0:02:00.3]} 10. Bxd7+ {[%clk 0:00:48.6]} 10... Nxd7 {[%clk 0:02:00.2]}
11. O-O {[%clk 0:00:46.3]} 11... Nf6 {[%clk 0:01:54.6]} 12. a3 {[%clk
0:00:32.5]} 12... Na6 {[%clk 0:01:50.3]} 13. e4 {[%clk 0:00:16.8]} 13... Ng4
{[%clk 0:01:33.9]} 14. Rfe1 {[%clk 0:00:09.8]} 14... Bxc3 {[%clk 0:01:11.8]} 15.
bxc3 {[%clk 0:00:05.2]} 15... f6 {[%clk 0:01:13]} 16. Nh2 {[%clk 0:00:04.4]}
16... Nxh2 {[%clk 0:01:04.8]} 17. Bxh2 {[%clk 0:00:06.3]} 17... Nc7 {[%clk
0:01:01.6]} 18. Rab1 {[%clk 0:00:07.1]} 18... O-O-O {[%clk 0:00:59]} 19. Red1
{[%clk 0:00:06]} 19... Nb5 {[%clk 0:00:45.5]} 20. c4 {[%clk 0:00:05.6]} 20...
Qxd2 {[%clk 0:00:39.6]} 21. Rxd2 {[%clk 0:00:07.5]} 21... Nc3 {[%clk 0:00:39.7]}
22. Rb3 {[%clk 0:00:03.6]} 22... Na4 {[%clk 0:00:26.1]} 23. f3 {[%clk
0:00:03.4]} 23... h6 {[%clk 0:00:24.5]} 24. Kf1 {[%clk 0:00:04.6]} 24... g5
{[%clk 0:00:25.5]} 25. Bg3 {[%clk 0:00:05.6]} 25... Nb6 {[%clk 0:00:17.2]} 26.
Rd1 {[%clk 0:00:05.5]} 26... Kc7 {[%clk 0:00:15.5]} 27. Rdb1 {[%clk 0:00:06.2]}
27... Rb8 {[%clk 0:00:17]} 28. Rc3 {[%clk 0:00:06.6]} 28... Nd7 {[%clk
0:00:14.6]} 29. Ke2 {[%clk 0:00:06.9]} 29... Ne5 {[%clk 0:00:12.7]} 30. Bxe5
{[%clk 0:00:07.5]} 30... fxe5 {[%clk 0:00:12.4]} 31. hxg5 {[%clk 0:00:08.1]}
31... hxg5 {[%clk 0:00:13.5]} 32. Kf2 {[%clk 0:00:09.6]} 32... Rh4 {[%clk
0:00:04.9]} 33. Re3 {[%clk 0:00:10.4]} 33... Rbh8 {[%clk 0:00:02.3]} 34. Ree1
{[%clk 0:00:11.2]} 34... g4 {[%clk 0:00:03.4]} 35. Rg1 {[%clk 0:00:09.4]} 35...
gxf3 {[%clk 0:00:04.1]} 36. gxf3 {[%clk 0:00:11.3]} 36... Rh2+ {[%clk
0:00:05.3]} 37. Rg2 {[%clk 0:00:12.6]} 37... Rxg2+ {[%clk 0:00:03.8]} 38. Kxg2
{[%clk 0:00:14.5]} 38... Rg8+ {[%clk 0:00:05.1]} 39. Kf2 {[%clk 0:00:15.8]}
39... Rg7 {[%clk 0:00:03.7]} 40. Rh1 {[%clk 0:00:16.9]} 40... b6 {[%clk
0:00:04.7]} 41. Rh5 {[%clk 0:00:17]} 41... Rf7 {[%clk 0:00:02.7]} 42. Rh4 {[%clk
0:00:17.7]} 1-0

[Event "*** Qualifier 3: Titled Tuesday 3|2 Blitz"]
[Site "Chess.com"]
[Date "2017.04.18"]
[Round "6"]
[White "fastestmindalive"]
[Black "TenisMaster"]
[Result "0-1"]
[WhiteElo "2435"]
[BlackElo "2678"]
[TimeControl "180+2"]
[EndTime "14:21:33 PDT"]
[Termination "TenisMaster won by resignation"]

1. e4 {[%clk 0:03:02]} 1... e5 {[%clk 0:03:00.6]} 2. Nf3 {[%clk 0:03:02.3]} 2...
Nc6 {[%clk 0:03:01.6]} 3. Bb5 {[%clk 0:03:03]} 3... a6 {[%clk 0:02:57]} 4. Ba4
{[%clk 0:03:04]} 4... Nf6 {[%clk 0:02:56.9]} 5. O-O {[%clk 0:03:05]} 5... b5
{[%clk 0:02:53.7]} 6. Bb3 {[%clk 0:03:05.9]} 6... Bc5 {[%clk 0:02:55.1]} 7. c3
{[%clk 0:03:03.2]} 7... d6 {[%clk 0:02:55.3]} 8. d4 {[%clk 0:03:01]} 8... Bb6
{[%clk 0:02:56]} 9. h3 {[%clk 0:02:55.9]} 9... h6 {[%clk 0:02:53.6]} 10. Bc2
{[%clk 0:02:55.1]} 10... O-O {[%clk 0:02:51.4]} 11. a4 {[%clk 0:02:51.9]} 11...
Bb7 {[%clk 0:02:40.9]} 12. Na3 {[%clk 0:02:45.6]} 12... exd4 {[%clk 0:02:40.7]}
13. cxd4 {[%clk 0:02:39.9]} 13... Nb4 {[%clk 0:02:39.9]} 14. d5 {[%clk
0:02:32.5]} 14... c6 {[%clk 0:02:23.9]} 15. dxc6 {[%clk 0:02:04.9]} 15... Bxc6
{[%clk 0:02:24.1]} 16. Re1 {[%clk 0:02:04.5]} 16... Nxc2 {[%clk 0:02:17.5]} 17.
Qxc2 {[%clk 0:02:04.6]} 17... Rc8 {[%clk 0:02:18.5]} 18. Qd3 {[%clk 0:02:02.3]}
18... b4 {[%clk 0:01:33.2]} 19. Nc2 {[%clk 0:01:40.7]} 19... a5 {[%clk
0:01:33.9]} 20. Ncd4 {[%clk 0:01:37.8]} 20... Ba8 {[%clk 0:01:18.4]} 21. Nf5
{[%clk 0:01:37.9]} 21... Bc5 {[%clk 0:01:08.8]} 22. Bf4 {[%clk 0:01:34.1]} 22...
Re8 {[%clk 0:01:09.3]} 23. Nd2 {[%clk 0:01:25.7]} 23... Nh5 {[%clk 0:00:50.5]}
24. Be3 {[%clk 0:01:15.5]} 24... Bxe3 {[%clk 0:00:47.3]} 25. Rxe3 {[%clk
0:01:13.1]} 25... Qf6 {[%clk 0:00:46.5]} 26. Rb1 {[%clk 0:00:54]} 26... d5
{[%clk 0:00:35.2]} 27. e5 {[%clk 0:00:28.7]} 27... Rxe5 {[%clk 0:00:35.1]} 28.
Rxe5 {[%clk 0:00:29.8]} 28... Qxe5 {[%clk 0:00:35.7]} 29. Nf3 {[%clk 0:00:31.5]}
29... Qf6 {[%clk 0:00:34.1]} 30. N3d4 {[%clk 0:00:28.2]} 30... Nf4 {[%clk
0:00:32.2]} 31. Qf3 {[%clk 0:00:18]} 31... Ne6 {[%clk 0:00:31.8]} 32. Qd3 {[%clk
0:00:19.1]} 32... Nxd4 {[%clk 0:00:31.9]} 33. Nxd4 {[%clk 0:00:20.1]} 33... Bb7
{[%clk 0:00:32.4]} 34. Re1 {[%clk 0:00:19.9]} 34... Ba6 {[%clk 0:00:33.4]} 35.
Qe3 {[%clk 0:00:16.3]} 35... g6 {[%clk 0:00:33.9]} 36. b3 {[%clk 0:00:17.5]}
36... Kg7 {[%clk 0:00:32.4]} 37. Qe5 {[%clk 0:00:17.8]} 37... Qxe5 {[%clk
0:00:32.1]} 38. Rxe5 {[%clk 0:00:19.7]} 38... Rc1+ {[%clk 0:00:27.1]} 39. Kh2
{[%clk 0:00:20.9]} 39... Rd1 {[%clk 0:00:23]} 40. Rxd5 {[%clk 0:00:21.4]} 40...
Bb7 {[%clk 0:00:24]} 41. Rd7 {[%clk 0:00:22.4]} 41... Kf6 {[%clk 0:00:22]} 42.
Rd6+ {[%clk 0:00:12.2]} 42... Ke5 {[%clk 0:00:20.2]} 43. Rd7 {[%clk 0:00:13.6]}
43... Rxd4 {[%clk 0:00:20.4]} 44. Rxb7 {[%clk 0:00:14.7]} 44... Rd3 {[%clk
0:00:21.3]} 45. Rb5+ {[%clk 0:00:15.8]} 45... Kd4 {[%clk 0:00:22.4]} 46. Rxa5
{[%clk 0:00:15]} 46... Rxb3 {[%clk 0:00:23.9]} 47. Ra7 {[%clk 0:00:15.9]} 47...
Ra3 {[%clk 0:00:24.8]} 48. Rxf7 {[%clk 0:00:17.3]} 48... b3 {[%clk 0:00:25.6]}
49. Rf3 {[%clk 0:00:17.4]} 49... Kc4 {[%clk 0:00:24.3]} 50. Rf4+ {[%clk
0:00:18.7]} 50... Kc3 {[%clk 0:00:24.8]} 51. Rf3+ {[%clk 0:00:17.7]} 51... Kc2
{[%clk 0:00:24.8]} 52. Rg3 {[%clk 0:00:15.9]} 52... g5 {[%clk 0:00:22.6]} 53. h4
{[%clk 0:00:16.1]} 53... gxh4 {[%clk 0:00:23.2]} 54. Rg6 {[%clk 0:00:15.6]}
54... b2 {[%clk 0:00:22.5]} 55. Rc6+ {[%clk 0:00:16.5]} 55... Rc3 {[%clk
0:00:23.5]} 56. Rb6 {[%clk 0:00:16.3]} 56... Rb3 {[%clk 0:00:24.1]} 57. Rc6+
{[%clk 0:00:17.9]} 57... Kd2 {[%clk 0:00:24.8]} 58. Rxh6 {[%clk 0:00:19.4]}
58... b1=Q {[%clk 0:00:25.2]} 59. Rxh4 {[%clk 0:00:21.3]} 59... Ke2 {[%clk
0:00:24.6]} 60. f3 {[%clk 0:00:21.8]} 60... Kf2 {[%clk 0:00:25.5]} 61. Re4
{[%clk 0:00:22.5]} 61... Qg1+ {[%clk 0:00:26.3]} 0-1

[Event "*** Qualifier 3: Titled Tuesday 3|2 Blitz"]
[Site "Chess.com"]
[Date "2017.04.18"]
[Round "6"]
[White "Paralinch"]
[Black "ChessQueen"]
[Result "0-1"]
[WhiteElo "2666"]
[BlackElo "2637"]
[TimeControl "180+2"]
[EndTime "14:21:34 PDT"]
[Termination "ChessQueen won by resignation"]

1. e4 {[%clk 0:03:02]} 1... c5 {[%clk 0:02:59.3]} 2. Nf3 {[%clk 0:03:03.2]} 2...
Nc6 {[%clk 0:03:00.4]} 3. d4 {[%clk 0:03:04.6]} 3... cxd4 {[%clk 0:03:01.4]} 4.
Nxd4 {[%clk 0:03:06.5]} 4... Nf6 {[%clk 0:03:02.7]} 5. Nc3 {[%clk 0:03:07.6]}
5... d6 {[%clk 0:03:04]} 6. Be2 {[%clk 0:03:08.5]} 6... e5 {[%clk 0:03:03.3]} 7.
Nf3 {[%clk 0:03:09.8]} 7... h6 {[%clk 0:03:02.7]} 8. O-O {[%clk 0:03:11.1]} 8...
Be7 {[%clk 0:03:03.8]} 9. Re1 {[%clk 0:03:12.5]} 9... O-O {[%clk 0:03:04.4]} 10.
Bf1 {[%clk 0:03:14.1]} 10... Bg4 {[%clk 0:03:01.4]} 11. h3 {[%clk 0:03:15.5]}
11... Bxf3 {[%clk 0:02:49]} 12. Qxf3 {[%clk 0:03:17.4]} 12... Nd4 {[%clk
0:02:47.5]} 13. Qd1 {[%clk 0:03:18.3]} 13... Rc8 {[%clk 0:02:41.1]} 14. Be3
{[%clk 0:03:19.2]} 14... Rxc3 {[%clk 0:02:03.9]} 15. bxc3 {[%clk 0:03:17.5]}
15... Nc6 {[%clk 0:02:04.7]} 16. Bc4 {[%clk 0:03:15.4]} 16... Nxe4 {[%clk
0:01:44.5]} 17. Bxh6 {[%clk 0:03:15.7]} 17... Ng5 {[%clk 0:01:44.2]} 18. Bxg5
{[%clk 0:03:10.6]} 18... Bxg5 {[%clk 0:01:45.1]} 19. Qg4 {[%clk 0:03:12.2]}
19... Bd2 {[%clk 0:01:42.9]} 20. Red1 {[%clk 0:03:01]} 20... Bxc3 {[%clk
0:01:39.6]} 21. Rab1 {[%clk 0:03:02.2]} 21... Bd4 {[%clk 0:01:21.6]} 22. c3
{[%clk 0:02:37.5]} 22... Bb6 {[%clk 0:01:18.3]} 23. Bd5 {[%clk 0:02:35.5]} 23...
Qf6 {[%clk 0:01:15.3]} 24. Qf3 {[%clk 0:02:36.2]} 24... Qxf3 {[%clk 0:01:14.3]}
25. Bxf3 {[%clk 0:02:37.2]} 25... Rd8 {[%clk 0:01:15.9]} 26. a4 {[%clk
0:02:32.6]} 26... Kf8 {[%clk 0:01:15.4]} 27. Rb5 {[%clk 0:02:31.4]} 27... Ke7
{[%clk 0:01:14.1]} 28. g4 {[%clk 0:02:24.4]} 28... Na5 {[%clk 0:01:13.5]} 29.
Kg2 {[%clk 0:02:22.2]} 29... Rc8 {[%clk 0:01:14.1]} 30. Rbd5 {[%clk 0:02:23.5]}
30... Bc5 {[%clk 0:01:12.6]} 31. g5 {[%clk 0:02:19.7]} 31... b6 {[%clk
0:01:12.7]} 32. Be2 {[%clk 0:02:16.5]} 32... Ba3 {[%clk 0:01:09.7]} 33. R1d3
{[%clk 0:02:13.6]} 33... Nb7 {[%clk 0:01:09.5]} 34. Bd1 {[%clk 0:02:04.3]} 34...
Nc5 {[%clk 0:01:04.9]} 35. Rf3 {[%clk 0:01:59.3]} 35... Ne6 {[%clk 0:01:05.6]}
36. Kf1 {[%clk 0:01:53.6]} 36... Nxg5 {[%clk 0:01:05.6]} 37. Rg3 {[%clk
0:01:49.5]} 37... Ne6 {[%clk 0:01:04.2]} 38. Bg4 {[%clk 0:01:44.3]} 38... g6
{[%clk 0:01:04.4]} 39. a5 {[%clk 0:01:43]} 39... Bc5 {[%clk 0:00:52]} 40. axb6
{[%clk 0:01:41.5]} 40... Bxb6 {[%clk 0:00:48.5]} 41. Rb5 {[%clk 0:01:38]} 41...
f5 {[%clk 0:00:43.3]} 42. Bd1 {[%clk 0:01:27.7]} 42... Nf4 {[%clk 0:00:44]} 43.
Bb3 {[%clk 0:01:28.8]} 43... Rh8 {[%clk 0:00:40.4]} 44. Rb4 {[%clk 0:01:24.1]}
44... Kf6 {[%clk 0:00:40.5]} 45. Ra4 {[%clk 0:01:16.7]} 45... Nxh3 {[%clk
0:00:40]} 46. Rd3 {[%clk 0:01:06.9]} 46... Bc5 {[%clk 0:00:38.2]} 47. Ra6 {[%clk
0:01:06.1]} 47... Nf4 {[%clk 0:00:35.5]} 48. Rg3 {[%clk 0:01:06.2]} 48... Rh1+
{[%clk 0:00:34]} 49. Rg1 {[%clk 0:01:07.6]} 49... Rh2 {[%clk 0:00:34.7]} 50. Ra2
{[%clk 0:01:06.6]} 50... g5 {[%clk 0:00:35.6]} 51. Rg3 {[%clk 0:00:59.4]} 51...
g4 {[%clk 0:00:35.4]} 52. Rd2 {[%clk 0:00:59.2]} 52... Rh1+ {[%clk 0:00:34.9]}
53. Rg1 {[%clk 0:01:00.5]} 53... Rh3 {[%clk 0:00:35.8]} 54. Rg3 {[%clk
0:01:00.9]} 54... Rh1+ {[%clk 0:00:28.1]} 55. Rg1 {[%clk 0:01:01.6]} 55... Rh2
{[%clk 0:00:28.9]} 56. Rg3 {[%clk 0:01:01.8]} 56... e4 {[%clk 0:00:30.1]} 57.
Rc2 {[%clk 0:00:52.9]} 57... Ke5 {[%clk 0:00:27.6]} 58. Ba4 {[%clk 0:00:48.1]}
58... Nd3 {[%clk 0:00:28.1]} 59. Rg2 {[%clk 0:00:49.5]} 59... Rxg2 {[%clk
0:00:28]} 60. Kxg2 {[%clk 0:00:50.7]} 60... Ne1+ {[%clk 0:00:29.1]} 61. Kf1
{[%clk 0:00:51.1]} 61... Nxc2 {[%clk 0:00:30.3]} 62. Bxc2 {[%clk 0:00:53]} 62...
f4 {[%clk 0:00:30.5]} 63. Ke2 {[%clk 0:00:53.9]} 63... f3+ {[%clk 0:00:30.4]}
64. Kf1 {[%clk 0:00:54.8]} 64... e3 {[%clk 0:00:30.7]} 0-1

[Event "*** Qualifier 3: Titled Tuesday 3|2 Blitz"]
[Site "Chess.com"]
[Date "2017.04.18"]
[Round "6"]
[White "Grebeniuk-S"]
[Black "RaphaeI"]
[Result "0-1"]
[WhiteElo "2406"]
[BlackElo "2406"]
[TimeControl "180+2"]
[EndTime "14:21:44 PDT"]
[Termination "RaphaeI won by resignation"]

1. d4 {[%clk 0:03:02]} 1... Nf6 {[%clk 0:03:00.2]} 2. Nf3 {[%clk 0:03:03.4]}
2... e6 {[%clk 0:03:00.9]} 3. e3 {[%clk 0:03:04.2]} 3... d5 {[%clk 0:02:58]} 4.
Bd3 {[%clk 0:03:06.1]} 4... Bd6 {[%clk 0:02:58]} 5. O-O {[%clk 0:03:06.6]} 5...
O-O {[%clk 0:02:59]} 6. b3 {[%clk 0:03:06.7]} 6... b6 {[%clk 0:03:00.1]} 7. Bb2
{[%clk 0:03:07.2]} 7... Bb7 {[%clk 0:03:01.3]} 8. Nbd2 {[%clk 0:03:05.5]} 8...
c5 {[%clk 0:03:02]} 9. Qe2 {[%clk 0:03:03.7]} 9... Nc6 {[%clk 0:02:57.4]} 10. a3
{[%clk 0:03:04]} 10... Rc8 {[%clk 0:02:55]} 11. Rfd1 {[%clk 0:03:02.1]} 11...
Qc7 {[%clk 0:02:45.3]} 12. dxc5 {[%clk 0:03:02.3]} 12... bxc5 {[%clk 0:02:40.9]}
13. e4 {[%clk 0:02:40.3]} 13... Ne5 {[%clk 0:01:45.1]} 14. Nxe5 {[%clk
0:02:23.4]} 14... Bxe5 {[%clk 0:01:46.1]} 15. Bxe5 {[%clk 0:02:25.3]} 15... Qxe5
{[%clk 0:01:47.2]} 16. Nf3 {[%clk 0:02:20.1]} 16... Qh5 {[%clk 0:01:25.5]} 17.
e5 {[%clk 0:02:17]} 17... Ne4 {[%clk 0:01:26.3]} 18. Re1 {[%clk 0:01:52.2]}
18... Nc3 {[%clk 0:01:20.8]} 19. Qd2 {[%clk 0:01:40.5]} 19... d4 {[%clk
0:01:21.5]} 20. Qf4 {[%clk 0:01:15.5]} 20... Bxf3 {[%clk 0:01:12.8]} 21. Qxf3
{[%clk 0:01:16.4]} 21... Qxf3 {[%clk 0:01:13]} 22. gxf3 {[%clk 0:01:18.3]} 22...
g6 {[%clk 0:01:07.5]} 23. Kg2 {[%clk 0:01:15.7]} 23... a5 {[%clk 0:01:07.8]} 24.
a4 {[%clk 0:01:13.2]} 24... h5 {[%clk 0:00:48]} 25. Kg3 {[%clk 0:01:12.9]} 25...
Kg7 {[%clk 0:00:48.2]} 26. h4 {[%clk 0:01:08.2]} 26... Rb8 {[%clk 0:00:42.9]}
27. Bc4 {[%clk 0:01:03.4]} 27... Rb4 {[%clk 0:00:43.3]} 28. Bd3 {[%clk
0:00:40.4]} 28... Rd8 {[%clk 0:00:42.9]} 29. f4 {[%clk 0:00:40.1]} 29... Kf8
{[%clk 0:00:39.4]} 30. Kf3 {[%clk 0:00:37.5]} 30... Ke7 {[%clk 0:00:40.2]} 31.
Rg1 {[%clk 0:00:38.9]} 31... Nd5 {[%clk 0:00:38.9]} 32. Rad1 {[%clk 0:00:32.1]}
32... Nb6 {[%clk 0:00:38.8]} 33. Bb5 {[%clk 0:00:27.5]} 33... c4 {[%clk
0:00:29.7]} 34. bxc4 {[%clk 0:00:25.4]} 34... Nxc4 {[%clk 0:00:26]} 35. Rd3
{[%clk 0:00:21.4]} 35... Nb6 {[%clk 0:00:15.1]} 36. Rgd1 {[%clk 0:00:15]} 36...
Nxa4 {[%clk 0:00:11.7]} 37. Bxa4 {[%clk 0:00:16.3]} 37... Rxa4 {[%clk
0:00:12.5]} 38. c3 {[%clk 0:00:17.4]} 38... Ra3 {[%clk 0:00:11.2]} 39. cxd4
{[%clk 0:00:18.2]} 39... Rxd3+ {[%clk 0:00:12.1]} 40. Rxd3 {[%clk 0:00:20.1]}
40... a4 {[%clk 0:00:13.6]} 41. Ke4 {[%clk 0:00:21.1]} 41... Ra8 {[%clk
0:00:14.4]} 42. Ra3 {[%clk 0:00:22.5]} 42... Ra5 {[%clk 0:00:15.4]} 43. Kd3
{[%clk 0:00:22.9]} 43... Kd7 {[%clk 0:00:16.9]} 44. Kc4 {[%clk 0:00:24.3]} 44...
Kc6 {[%clk 0:00:18.3]} 45. Kb4 {[%clk 0:00:25.1]} 45... Ra8 {[%clk 0:00:18]} 46.
Kc4 {[%clk 0:00:24.6]} 46... Ra7 {[%clk 0:00:16.7]} 47. f3 {[%clk 0:00:25.7]}
47... Ra6 {[%clk 0:00:16.5]} 48. Kb4 {[%clk 0:00:23.6]} 48... Kd5 {[%clk
0:00:16.7]} 49. Kc3 {[%clk 0:00:24.3]} 49... Rc6+ {[%clk 0:00:16.2]} 50. Kd3
{[%clk 0:00:20.7]} 50... Rc4 {[%clk 0:00:17]} 51. Ke3 {[%clk 0:00:21.5]} 51...
Rb4 {[%clk 0:00:15.6]} 52. Kf2 {[%clk 0:00:17.7]} 52... Kxd4 {[%clk 0:00:15.2]}
53. Ra1 {[%clk 0:00:18.5]} 53... Kc3 {[%clk 0:00:15.3]} 54. Rc1+ {[%clk
0:00:19.3]} 54... Kb2 {[%clk 0:00:16.5]} 55. Rc7 {[%clk 0:00:20.5]} 55... a3
{[%clk 0:00:17.8]} 56. Rxf7 {[%clk 0:00:20.5]} 56... a2 {[%clk 0:00:18.7]} 57.
Ra7 {[%clk 0:00:20.9]} 57... a1=Q {[%clk 0:00:17.9]} 58. Rxa1 {[%clk 0:00:22.4]}
58... Kxa1 {[%clk 0:00:19.7]} 59. Ke3 {[%clk 0:00:23.8]} 59... Kb2 {[%clk
0:00:19.5]} 60. f5 {[%clk 0:00:23.7]} 60... gxf5 {[%clk 0:00:19.5]} 61. f4
{[%clk 0:00:25.2]} 61... Re4+ {[%clk 0:00:19.2]} 62. Kf3 {[%clk 0:00:25.6]} 0-1